lending/lending_fUSD_20240111
["ID","MTS","AMOUNT","RATE_DAILY","PERIOD"]
[311192394,1704977451193,-219.05732455,0.00039726,4]
[311192395,1704977451203,-322.59629854,0.00039726,4]
[311192396,1704977451215,-177.40370146,0.00039726,4]
[311192397,1704977451225,-614.68,0.00039726,4]
[311192398,1704977451240,-310.16025322,0.00039726,4]
[311192399,1704977451253,-783.22974678,0.00039726,4]
[311192400,1704977451263,-483.47,0.00039726,4]
[311192401,1704977451273,-500.0,0.00039726,4]
[311192402,1704977451283,-350.29827602,0.00039726,4]
[311192403,1704977451295,-163.07172398,0.00039726,4]
[311192404,1704977451305,-500.0,0.00039726,4]
[311192405,1704977451314,-321.62,0.00039726,4]
[311192406,1704977451324,-500.0,0.00039726,4]
[311192407,1704977451333,-500.0,0.00039726,4]
[311192408,1704977451343,-1861.01,0.00039726,4]
[311192409,1704977451353,-374.58675533,0.00039726,4]
[311192410,1704977451365,-95.46324467,0.00039726,4]
[311192411,1704977451374,-1600.84,0.00039726,4]
[311192412,1704977451384,-500.0,0.00039726,4]
[311192413,1704977451393,-500.0,0.00039726,4]
[311192414,1704977451403,-1144.39,0.00039726,4]
[311192415,1704977451412,-500.0,0.00039726,4]
[311192416,1704977451421,-1638.44805243,0.00039726,4]
[311192417,1704977451435,-560.54915696,0.00039726,4]
[311192418,1704977451458,-87.17210644,0.00039726,4]
[311192419,1704977451470,-877.23058784,0.00039726,4]
[311192420,1704977451482,-2082.40009633,0.00039726,4]
[311192421,1704977451491,-500.0,0.00039726,5]
[311192422,1704977451501,-500.0,0.00039726,4]
[311192423,1704977451510,-500.0,0.00039726,4]
[311192424,1704977451519,-500.0,0.00039726,4]
[311192425,1704977451529,-600.76,0.00039726,4]
[311192426,1704977451538,-500.0,0.00039726,4]
[311192427,1704977451548,-500.0,0.00039726,4]
[311192428,1704977451558,-649.5,0.00039726,4]
[311192429,1704977451567,-500.0,0.00039726,4]
[311192430,1704977451576,-500.0,0.00039726,4]
[311192431,1704977451586,-500.0,0.00039726,4]
[311192432,1704977451596,-500.0,0.00039726,4]
[311192433,1704977451605,-500.0,0.00039726,4]
[311192434,1704977451614,-500.0,0.00039726,4]
[311192435,1704977451623,-770.0,0.00039726,4]
[311192436,1704977451634,-198.05104054,0.00039726,4]
[311192437,1704977451643,-500.0,0.00039726,4]
[311192438,1704977451653,-500.0,0.00039726,4]
[311192439,1704977451662,-500.0,0.00039726,4]
[311192440,1704977451671,-500.0,0.00039726,4]
[311192441,1704977451682,-500.0,0.00039726,4]
[311192442,1704977451692,-500.0,0.00039726,4]
[311192443,1704977451702,-586.99,0.00039726,4]
[311192444,1704977451711,-500.0,0.00039726,4]
[311192445,1704977451720,-500.0,0.00039726,4]
[311192446,1704977451730,-500.0,0.00039726,4]
[311192447,1704977451739,-500.0,0.00039726,4]
[311192448,1704977451749,-500.0,0.00039726,4]
[311192449,1704977451758,-500.0,0.00039726,4]
[311192450,1704977451768,-607.4,0.00039726,4]
[311192451,1704977451777,-500.0,0.00039726,4]
[311192452,1704977451787,-798.57,0.00039726,4]
[311192453,1704977451796,-454.73244446,0.00039726,4]
[311192454,1704977451809,-45.26755554,0.00039726,4]
[311192455,1704977451818,-500.0,0.00039726,4]
[311192456,1704977451828,-500.0,0.00039726,4]
[311192457,1704977451837,-500.0,0.00039726,4]
[311192458,1704977451846,-500.0,0.00039726,4]
[311192459,1704977451855,-606.04606462,0.00039726,4]
[311192460,1704977451866,-391.25088395,0.00039726,4]
[311192461,1704977451907,300.0,0.00030898,2]
[311192462,1704977451937,-196.73891114,0.00039177,2]
[311192463,1704977451947,-1000.0,0.00039177,4]
[311192464,1704977451956,-3316.10755544,0.00039726,4]
[311192465,1704977451968,-1647.28549599,0.00039726,4]
[311192466,1704977451977,-500.0,0.00039726,4]
[311192467,1704977451987,-500.0,0.00039726,4]
[311192468,1704977451996,-526.08,0.00039726,4]
[311192469,1704977452006,-500.0,0.00039726,4]
[311192470,1704977452015,-500.0,0.00039726,4]
[311192471,1704977452025,-500.0,0.00039726,4]
[311192472,1704977452034,-500.0,0.00039726,4]
[311192473,1704977452044,-500.0,0.00039726,4]
[311192474,1704977452053,-500.0,0.00039726,4]
[311192475,1704977452062,-500.0,0.00039726,4]
[311192476,1704977452072,-500.0,0.00039726,4]
[311192477,1704977452082,-500.0,0.00039726,4]
[311192478,1704977452092,-500.0,0.00039726,4]
[311192479,1704977452101,-500.0,0.00039726,5]
[311192480,1704977452111,-500.0,0.00039726,4]
[311192481,1704977452121,-500.0,0.00039726,4]
[311192482,1704977452131,-840.0,0.00039777,2]
[311192483,1704977452140,-178.35748923,0.00039798,2]
[311192484,1704977452150,-150.23893773,0.00039798,5]
[311192485,1704977452159,-153.0,0.000398,7]
[311192486,1704977452168,-155.87539404,0.000398,2]
[311192487,1704977452180,-172.28259044,0.00039869,2]
[311192488,1704977452189,-250.0,0.0003988,2]
[311192489,1704977452198,-500.0,0.0003988,2]
[311192490,1704977452208,-500.0,0.0003988,2]
[311192491,1704977452217,-500.0,0.0003988,2]
[311192492,1704977452227,-500.0,0.0003988,2]
[311192493,1704977452241,-500.0,0.0003988,2]
[311192494,1704977452251,-500.0,0.0003988,2]
[311192495,1704977452261,-500.0,0.0003988,2]
[311192496,1704977452270,-500.0,0.0003988,2]
[311192497,1704977452279,-429.48885194,0.0003988,2]
[311192498,1704977452356,-70.51114806,0.0003988,2]
[311192499,1704977452365,-500.0,0.0003988,2]
[311192500,1704977452375,-446.71215461,0.0003988,2]
[311192501,1704977452406,-53.28784539,0.0003988,2]
[311192502,1704977452416,-500.0,0.0003988,2]
[311192503,1704977452428,-425.36023638,0.0003988,2]
[311192504,1704977452440,-74.63976362,0.0003988,2]
[311192505,1704977452449,-221.45296451,0.0003988,2]
[311192506,1704977452465,-278.54703549,0.0003988,2]
[311192507,1704977452475,-500.0,0.0003988,2]
[311192508,1704977452484,-500.0,0.0003988,2]
[311192509,1704977452494,-500.0,0.0003988,2]
[311192510,1704977452503,-500.0,0.0003988,2]
[311192511,1704977452512,-500.0,0.0003988,2]
[311192512,1704977452521,-500.0,0.0003988,2]
[311192513,1704977452530,-500.0,0.0003988,2]
[311192514,1704977452540,-500.0,0.0003988,2]
[311192515,1704977452549,-500.0,0.0003988,2]
[311192516,1704977452558,-500.0,0.0003988,2]
[311192517,1704977452567,-500.0,0.0003988,2]
[311192518,1704977452576,-500.0,0.0003988,2]
[311192519,1704977452586,-500.0,0.0003988,2]
[311192520,1704977452595,-500.0,0.0003988,2]
[311192521,1704977452604,-500.0,0.0003988,2]
[311192522,1704977452613,-500.0,0.0003988,2]
[311192523,1704977452622,-500.0,0.0003988,2]
[311192524,1704977452632,-1087.3,0.00039889,4]
[311192525,1704977452641,-1087.3,0.00039889,4]
[311192526,1704977452651,-61505.87838492,0.0003989,5]
[311192527,1704977452665,-378.41523539,0.0003989,5]
[311192528,1704977452678,-2823.06964664,0.0003989,5]
[311192529,1704977452689,-13807.40729193,0.0003989,5]
[311192530,1704977452700,-524.75407392,0.0003989,5]
[311192531,1704977452711,-235701.00781125,0.0003989,5]
[311192532,1704977452723,-2455.04708258,0.0003989,5]
[311192533,1704977452734,-1459.91001632,0.0003989,5]
[311192534,1704977452746,-13275.07243779,0.0003989,5]
[311192535,1704977452758,-1322.68616832,0.0003989,5]
[311192536,1704977452770,-12944.31968767,0.0003989,5]
[311192537,1704977452781,-17763.05520326,0.0003989,5]
[311192538,1704977452793,-12921.94257101,0.0003989,5]
[311192539,1704977452803,-2298.0,0.0003989,3]
[311192540,1704977452812,-1087.3,0.00039899,4]
[311192541,1704977452822,-1087.3,0.00039899,4]
[311192542,1704977452831,-1087.3,0.00039899,4]
[311192543,1704977452840,-65248.93728132,0.000399,9]
[311192544,1704977452852,-924.10594766,0.000399,9]
[311192547,1704977469857,1573.35747929,0.00023,2]
[311192548,1704977469882,3017.7741,0.00023,2]
[311192549,1704977469916,1799.09,0.00023,2]
[311192550,1704977469946,1851.33441926,0.00023,2]
[311192551,1704977469973,1855.59845765,0.00023,2]
[311192552,1704977469998,41792.34140789,0.00023,2]
[311192553,1704977470026,1876.39322223,0.00023,2]
[311192554,1704977470056,390589.92546353,0.00023,2]
[311192555,1704977470081,1050.0,0.00023,2]
[311192556,1704977470324,500000.0,0.00023,2]
[311192557,1704977470363,300000.0,0.00023,2]
[311192558,1704977470395,7544.4441289,0.00023,2]
[311192559,1704977470425,7544.4441289,0.00023,2]
[311192560,1704977470464,4290447.34318022,0.00023,2]
[311192561,1704977470492,907818.702244,0.00023,2]
[311192564,1704977478844,150.62461309,0.00021,2]
[311192565,1704977492244,535.46710297,0.0001,2]
[311192566,1704977496576,8000.0,0.00011,2]
[311192569,1704977513632,1907.37942606,0.0003,30]
[311192570,1704977514300,16083.96196077,6.94e-05,2]
[311192587,1704977521182,5607.87225538,0.000155,2]
[311192706,1704977547243,1878.72740287,0.00015,2]
[311192707,1704977564357,2215.75986452,0.00022,2]
[311192708,1704977571809,-2536.18673685,0.00032899,4]
[311192709,1704977571838,-21164.0,0.000329,3]
[311192710,1704977571862,-15672.84149136,0.00033206,3]
[311192711,1704977571887,-936.25729366,0.00033206,4]
[311192712,1704977571910,-1028.6792883,0.00033207,2]
[311192713,1704977571934,-1707.78225196,0.00033208,2]
[311192714,1704977571958,-1111.01235056,0.00033208,2]
[311192715,1704977571987,-559.19420109,0.00033209,4]
[311192716,1704977572012,-33012.10820264,0.00034988,4]
[311192717,1704977572037,-5364.04383816,0.00034989,4]
[311192718,1704977572061,-392.95,0.00034989,5]
[311192719,1704977572084,-1480.0,0.0003499,8]
[311192720,1704977573434,1000.0,0.00032898,2]
[311192721,1704977573779,1014.29486469,0.00015,14]
[311192722,1704977577565,13020.64948073,0.00034987,2]
[311192723,1704977596544,-27510.09016887,0.00027985,2]
[311192724,1704977596567,-5179.59634795,0.000298,2]
[311192725,1704977609758,14332.75697798,0.00027985,2]
[311192726,1704977617601,636.43786626,0.0002313,2]
[311192727,1704977627769,14332.75697798,0.00027829,2]
[311192728,1704977629314,18373.90429736,0.0003,4]
[311192729,1704977631059,19634.4573636,0.00023,2]
[311192730,1704977631093,5328.68426438,0.00023,2]
[311192731,1704977631125,544.4441289,0.00023,2]
[311192732,1704977631154,544.4441289,0.00023,2]
[311192733,1704977631182,544.4441289,0.00023,2]
[311192734,1704977631208,544.4441289,0.00023,2]
[311192735,1704977631233,544.4441289,0.00023,2]
[311192736,1704977631258,544.4441289,0.00023,2]
[311192737,1704977631282,544.4441289,0.00023,2]
[311192738,1704977631308,544.4441289,0.00023,2]
[311192739,1704977631331,890128.48354632,0.00023,2]
[311192741,1704977648674,2215.64016097,0.0002,2]
[311192742,1704977665098,3979.62888155,0.00022,2]
[311192845,1704977837131,181.80905086,0.00022,2]
[311192846,1704977842586,155.0,0.00022,2]
[311192847,1704977846036,543.57792271,0.00022,2]
[311192848,1704977847418,1328.58837235,0.00022,2]
[311192849,1704977847786,1891.70798367,0.00022,2]
[311192850,1704977847835,500.0,0.00022,2]
[311192851,1704977848006,4060.46600225,0.00022,2]
[311192852,1704977849060,1032.18354327,0.00022,2]
[311192853,1704977849425,855.86394758,0.00022,2]
[311192856,1704977862582,204.35761727,0.00022,2]
[311192857,1704977863093,3198.47182879,0.00022,2]
[311192858,1704977864024,544.63786016,0.00022,2]
[311192859,1704977865942,500.0,0.00022,2]
[311192860,1704977867685,454.86612135,0.00022,2]
[311192861,1704977867998,2115.50278717,0.00022,2]
[311192862,1704977869050,1032.18354327,0.00022,2]
[311192863,1704977873416,259.91711728,0.00022,2]
[311192865,1704977881098,3198.47182879,0.00022,2]
[311192866,1704977885047,1034.65107584,0.00022,2]
[311192867,1704977886011,2115.50278717,0.00022,2]
[311192871,1704977904084,2115.50278717,0.00022,2]
[311192874,1704977910998,419.33476208,0.00021999,2]
[311192878,1704977919997,2115.50278717,0.00022,2]
[311192883,1704977938000,2115.50278717,0.00022,2]
[311192887,1704977956007,2115.50278717,0.00022,2]
[311192888,1704977972006,2115.50278717,0.00022,2]
[311192890,1704977988006,2115.50278717,0.00022,2]
[311192893,1704978006005,2115.50278717,0.00022,2]
[311192894,1704978020011,2115.50278717,0.00022,2]
[311192895,1704978038012,2115.50278717,0.00022,2]
[311192917,1704978552136,-1201.89770384,0.00024122,2]
[311192918,1704978552167,-246.33521087,0.00024123,2]
[311192919,1704978552188,-3186.46864652,0.00024123,2]
[311192920,1704978552209,-165.18,0.0002413,2]
[311192921,1704978552229,-150.0,0.00024996,2]
[311192922,1704978552253,-2284.34366033,0.00024997,2]
[311192923,1704978558126,-1742.57801425,0.00024997,2]
[311192924,1704978562117,-10305.8353034,0.00024997,2]
[311192925,1704978562138,-350.0,0.00025,3]
[311192926,1704978562159,-400.0,0.00027,3]
[311192927,1704978562181,-210.0,0.00027496,2]
[311192928,1704978562201,-235.67264847,0.00027822,2]
[311192929,1704978562222,-13548.65704813,0.00027823,2]
[311192930,1704978567107,-3186.46864652,0.00026708,2]
[311192931,1704978567127,-461.28089593,0.00027822,2]
[311192932,1704978567148,-2722.63929262,0.00027823,2]
[311192935,1704978568099,-1538.67922647,0.00027823,2]
[311192936,1704978568121,-10895.5366956,0.00027824,2]
[311192937,1704978568140,-383.72,0.00027824,2]
[311192938,1704978568159,-1549.87,0.00027824,2]
[311192939,1704978568179,-530.92,0.00027828,2]
[311192940,1704978568198,-228.80942266,0.00027828,2]
[311192941,1704978568218,-544.73,0.00027828,2]
[311192942,1704978568237,-499.99,0.00027828,2]
[311192943,1704978568256,-222.23,0.00027828,8]
[311192946,1704978569814,246.33521087,0.00027821,2]
[311192947,1704978573099,-450.0,0.00029,3]
[311192948,1704978573122,-155.09666379,0.000299,2]
[311192949,1704978573145,-250.0,0.00029973,2]
[311192950,1704978573165,-554.13283621,0.0003,2]
[311192951,1704978577855,81.89989797,0.00023762,2]
[311192957,1704978598170,-12700.0,0.00023762,2]
[311192970,1704978631496,-475.01916,0.00023762,2]
[311192973,1704978631618,-296.5060084,0.00023762,2]
[311192974,1704978631631,-734.68937,0.00023762,2]
[311192975,1704978631643,-44.64254161,0.00023762,2]
[311192976,1704978631652,-1240.0217911,0.0003,2]
[311192977,1704978631662,-183.11,0.00030063,2]
[311192978,1704978631672,-530.92,0.00030091,2]
[311192979,1704978631681,-1288.81,0.00030137,2]
[311192980,1704978631690,-500.0,0.00030163,2]
[311192981,1704978631699,-154.94,0.00030176,2]
[311192982,1704978631708,-2318.28,0.00030222,2]
[311192983,1704978631719,-544.24,0.00030222,2]
[311192984,1704978631728,-293.0,0.00030245,2]
[311192985,1704978631737,-150.0,0.00030313,2]
[311192986,1704978631746,-2570.69,0.00030328,2]
[311192987,1704978631755,-154.94,0.00030333,2]
[311192988,1704978631764,-1032.66,0.00030369,2]
[311192989,1704978631774,-1385.03175406,0.00030415,2]
[311192990,1704978631783,-504.0,0.00030418,2]
[311192991,1704978631794,-154.94,0.00030491,2]
[311192992,1704978631803,-167.92,0.0003054,2]
[311192993,1704978631812,-2000.0,0.00030546,2]
[311192994,1704978631821,-154.94,0.00030648,2]
[311192995,1704978631830,-154.94,0.00030805,2]
[311192996,1704978631840,-264.75,0.00030863,2]
[311192997,1704978631850,-154.94,0.00030962,2]
[311192998,1704978631859,-500.0,0.00031,3]
[311192999,1704978631868,-154.94,0.0003112,2]
[311193000,1704978631878,-154.94,0.00031277,2]
[311193001,1704978631887,-154.94,0.00031434,2]
[311193002,1704978631896,-247.56908475,0.00031539,4]
[311193003,1704978631905,-154.94,0.00031591,2]
[311193004,1704978631915,-226.77203404,0.00031683,4]
[311193005,1704978631925,-1184.18279444,0.00031684,2]
[311193006,1704978631938,-13069.48720556,0.00031684,2]
[311193007,1704978631947,-695.81,0.00031718,2]
[311193008,1704978631957,-1799.09,0.00031718,2]
[311193009,1704978631966,-154.94,0.00031749,2]
[311193010,1704978631976,-264.75,0.00031842,2]
[311193011,1704978631985,-155.09666374,0.00031845,2]
[311193012,1704978631995,-529.1,0.00031845,2]
[311193013,1704978632004,-200.0,0.00031942,2]
[311193014,1704978632014,-791.84,0.0003199,10]
[311193015,1704978632024,-1843.7475332,0.00031999,2]
[311193016,1704978632034,-151136.69491442,0.00032,2]
[311193017,1704978632043,-218.22275157,0.00032192,2]
[311193018,1704978632052,-161.86,0.00032292,2]
[311193019,1704978632062,-530.92,0.00032355,2]
[311193020,1704978632071,-2156.0,0.000324,3]
[311193021,1704978632080,-268.26,0.0003252,2]
[311193022,1704978632090,-190.42,0.0003252,2]
[311193023,1704978632099,-153.84,0.00032622,2]
[311193024,1704978632108,-264.75,0.0003282,2]
[311193025,1704978632118,-445.16,0.00032877,15]
[311193026,1704978632127,-1850.02,0.00032919,2]
[311193027,1704978632136,-500.0,0.00032937,2]
[311193028,1704978632146,-550.0,0.00033,3]
[311193029,1704978632155,-153.84,0.0003361,2]
[311193030,1704978632164,-158.16,0.00033654,2]
[311193031,1704978632175,-218.22275155,0.0003377,2]
[311193032,1704978632184,-155.09666374,0.0003379,2]
[311193033,1704978632193,-165.24,0.00033796,2]
[311193034,1704978632203,-264.75,0.00033799,2]
[311193035,1704978632212,-155.14683111,0.00033799,14]
[311193036,1704978632222,-313.53157253,0.00033996,4]
[311193037,1704978632231,-1014.44958375,0.00033997,2]
[311193038,1704978632241,-2027.86180991,0.00033997,2]
[311193039,1704978632250,-264.58511852,0.00033998,4]
[311193040,1704978632259,-39965.10270575,0.00033998,2]
[311193041,1704978632269,-1000.0,0.00034,4]
[311193042,1704978632279,-334.87008511,0.00034095,4]
[311193043,1704978632288,-504.0,0.00034221,2]
[311193044,1704978632298,-181.29,0.00034469,2]
[311193045,1704978632307,-177.3,0.00034521,2]
[311193046,1704978632317,-153.84,0.00034599,2]
[311193047,1704978632327,-530.92,0.00034619,2]
[311193048,1704978632336,-496.0,0.00034634,2]
[311193049,1704978632345,-311.6,0.00034654,2]
[311193050,1704978632354,-264.75,0.00034777,2]
[311193051,1704978632364,-158.55,0.0003499,2]
[311193052,1704978632374,-6867.75235966,0.00035,2]
[311193053,1704978632383,-600.0,0.00035,3]
[311193054,1704978632392,-719.0,0.00035063,2]
[311193055,1704978632401,-164.09063194,0.00035235,7]
[311193056,1704978632410,-237.42046669,0.000353,30]
[311193057,1704978632422,-358.1208755,0.00035307,2]
[311193058,1704978632431,-8046.68564751,0.00035307,7]
[311193059,1704978632441,-1572.11561838,0.00035317,2]
[311193060,1704978632451,-397.4811,0.00035317,2]
[311193061,1704978632460,-943.76,0.00035317,2]
[311193062,1704978632470,-12307.57289721,0.00035317,2]
[311193063,1704978632483,-9421.42134927,0.00035317,2]
[311193064,1704978634518,-205.0,0.00035065,2]
[311193065,1704978634529,-7933.16125352,0.00035317,2]
[311193066,1704978634539,-2682.22854917,0.00035338,7]
[311193067,1704978634548,-151.34312551,0.00035348,2]
[311193068,1704978634558,-204.99891904,0.00035348,9]
[311193069,1704978634567,-218.22275155,0.00035348,2]
[311193070,1704978634576,-1522.28,0.000354,30]
[311193071,1704978634586,-96560.2277701,0.00035406,7]
[311193072,1704978634595,-167.94131411,0.00035413,2]
[311193073,1704978634605,-489.11941966,0.00035414,4]
[311193074,1704978634614,-243.79605998,0.00035415,2]
[311193075,1704978634624,-395.27871204,0.00035415,4]
[311193076,1704978634633,-155.2723803,0.00035415,4]
[311193077,1704978634642,-394364.40642663,0.00035416,4]
[311193078,1704978634652,-2151.90864856,0.00035448,30]
[311193079,1704978634661,-153.84,0.00035587,2]
[311193080,1704978634672,-323.99,0.00035616,2]
[311193081,1704978634681,-151.36,0.00035616,2]
[311193082,1704978634691,-1359.08,0.0003568,2]
[311193083,1704978634701,-155.09666374,0.00035735,2]
[311193084,1704978634710,-264.75,0.00035756,2]
[311193085,1704978634719,-158.13,0.00035875,2]
[311193086,1704978634729,-165.24,0.00035915,2]
[311193087,1704978634738,-23254.1429884,0.00035947,13]
[311193088,1704978634747,-5586.08850166,0.00035954,11]
[311193089,1704978634757,-151.34312527,0.00035961,2]
[311193090,1704978634766,-200.0,0.00035987,2]
[311193092,1704978634776,-11874.7539677,0.00036,2]
[311193094,1704978634785,-218.0415339,0.00036,30]
[311193096,1704978634796,-150.49,0.00036,2]
[311193098,1704978634805,-150.49,0.00036,2]
[311193099,1704978634815,-150.49,0.00036,2]
[311193100,1704978634825,-150.49,0.00036,2]
[311193101,1704978634834,-150.49,0.00036,2]
[311193102,1704978634843,-164.09063193,0.00036028,7]
[311193103,1704978634853,-183.11,0.00036075,2]
[311193104,1704978634862,-171.13114809,0.00036089,2]
[311193105,1704978634871,-419.21380411,0.00036194,10]
[311193106,1704978634880,-158.13,0.00036201,2]
[311193107,1704978634889,-177.3,0.00036224,2]
[311193108,1704978634899,-158.13,0.00036527,2]
[311193109,1704978634908,-165.51,0.0003653,2]
[311193110,1704978634917,-151.34312527,0.00036573,2]
[311193111,1704978634927,-153.84,0.00036576,2]
[311193112,1704978634936,-445.16,0.00036613,15]
[311193113,1704978634945,-315.7826,0.00036656,2]
[311193114,1704978634955,-183.28063339,0.000367,2]
[311193115,1704978634964,-264.75,0.00036734,2]
[311193116,1704978634974,-164.09063193,0.00036822,8]
[311193117,1704978634983,-158.13,0.00036853,2]
[311193118,1704978634992,-530.92,0.00036883,2]
[311193119,1704978635001,-1572.1156183,0.00036896,2]
[311193120,1704978635011,-1089.246,0.00036914,2]
[311193121,1704978635020,-1251.0,0.00036914,2]
[311193122,1704978635030,-1234.0,0.00036914,2]
[311193123,1704978635040,-1930.0,0.00036914,2]
[311193124,1704978635050,-1139.0,0.00036914,2]
[311193125,1704978635060,-238.493,0.00036914,2]
[311193126,1704978635069,-615.746,0.00036914,2]
[311193127,1704978635079,-320.032,0.00036914,2]
[311193128,1704978635089,-3834.37864996,0.00036941,4]
[311193129,1704978635099,-152.0,0.00036947,3]
[311193130,1704978635108,-200.0,0.00036987,3]
[311193131,1704978635118,-150.49,0.0003699,2]
[311193132,1704978635128,-9436.4,0.00037,2]
[311193133,1704978635137,-424.6498,0.00037007,3]
[311193134,1704978635147,-15896.9431349,0.00037107,8]
[311193135,1704978635165,-4337.87139875,0.00037107,8]
[311193136,1704978635178,-2097.41534152,0.00037107,8]
[311193137,1704978635189,-1472.97,0.00037107,8]
[311193138,1704978635218,-1170.87002281,0.00037107,8]
[311193139,1704978635260,-54068.0877853,0.00037107,8]
[311193140,1704978635269,-205.0,0.00037143,6]
[311193141,1704978635280,-158.13,0.00037179,2]
[311193142,1704978635290,-151.34312527,0.00037186,2]
[311193143,1704978635300,-5740.87065919,0.00037217,7]
[311193144,1704978635310,-167.89499126,0.00037294,8]
[311193145,1704978635320,-154.0,0.000373,7]
[311193146,1704978635329,-150.49,0.00037304,2]
[311193147,1704978635339,-155.37655705,0.00037314,4]
[311193148,1704978635349,-162.4414931,0.00037314,4]
[311193149,1704978635358,-233.57461259,0.00037314,4]
[311193150,1704978635367,-188.51594884,0.00037314,4]
[311193151,1704978635377,-1763.54384261,0.00037314,4]
[311193152,1704978635386,-886.64229292,0.00037314,4]
[311193153,1704978635396,-156.77132149,0.00037314,4]
[311193154,1704978635406,-4077.54945608,0.00037314,4]
[311193155,1704978635415,-1229.5749966,0.00037314,4]
[311193156,1704978635426,-238.93493923,0.00037314,4]
[311193157,1704978635436,-363.56577485,0.00037314,4]
[311193158,1704978635446,-161.06100437,0.00037314,4]
[311193159,1704978635456,-504.04830907,0.00037314,2]
[311193160,1704978635465,-1046.63564606,0.00037314,14]
[311193161,1704978635475,-172.27806036,0.00037314,4]
[311193162,1704978635485,-219.62000087,0.00037314,4]
[311193163,1704978635494,-220.26666446,0.00037315,4]
[311193164,1704978635504,-523.75608307,0.00037315,4]
[311193165,1704978635514,-369.68840107,0.00037315,4]
[311193166,1704978635524,-1675.0087302,0.00037315,3]
[311193167,1704978635533,-150.49,0.00037316,2]
[311193168,1704978635543,-18765.61288073,0.00037326,120]
[311193169,1704978635555,-1594.0,0.00037326,120]
[311193170,1704978635567,-7104.0,0.00037326,120]
[311193187,1704978638324,-302.72152198,0.00035316,4]
[311193188,1704978638334,-1545.64420964,0.00037226,10]
[311193189,1704978638343,-35949.70528588,0.00037326,120]
[311193190,1704978638355,-476.54,0.00037326,120]
[311193191,1704978638367,-2533.399985,0.00037326,120]
[311193192,1704978638378,-311.84474371,0.00037326,120]
[311193193,1704978638389,-960.07784106,0.00037326,120]
[311193194,1704978638413,-1745.03734038,0.00037326,120]
[311193195,1704978638427,-1099.49999995,0.00037326,120]
[311193196,1704978638440,-3754.7046696,0.00037326,120]
[311193197,1704978638451,-55308.65541319,0.00037326,120]
[311193198,1704978638461,-7761.79501618,0.00037326,2]
[311193199,1704978638470,-17921.32597948,0.00037326,3]
[311193200,1704978638481,-1102.33805012,0.00037326,3]
[311193201,1704978638493,-998.80882928,0.00037326,3]
[311193202,1704978638505,-340.1437836,0.00037326,3]
[311193203,1704978638516,-20160.18608956,0.00037326,3]
[311193204,1704978638702,-1163.38630614,0.00037326,3]
[311193205,1704978638712,-2229.07842076,0.00037326,30]
[311193206,1704978638721,-383.39980938,0.00037326,2]
[311193207,1704978638730,-158.13,0.00037506,2]
[311193208,1704978638739,-153.84,0.00037564,2]
[311193209,1704978638748,-164.09063193,0.00037615,8]
[311193210,1704978638758,-155.09666374,0.0003768,2]
[311193211,1704978638767,-150.49,0.0003769,2]
[311193212,1704978638776,-153.62,0.000377,3]
[311193213,1704978638786,-153.62,0.000377,3]
[311193214,1704978638799,-153.62,0.000377,3]
[311193215,1704978638808,-153.62,0.000377,3]
[311193216,1704978638817,-153.62,0.000377,3]
[311193217,1704978638827,-153.62,0.000377,3]
[311193218,1704978638835,-153.62,0.000377,3]
[311193219,1704978638844,-264.75,0.00037713,2]
[311193220,1704978638853,-8121.309,0.00037714,2]
[311193221,1704978638862,-168.133,0.00037714,2]